fUSD/lending_fUSD_20240704
["ID","MTS","AMOUNT","RATE_DAILY","PERIOD"]
[331165481,1720114245928,-500.0,0.00021917,4]
[331165483,1720114245939,-500.0,0.00021917,4]
[331165485,1720114245949,-500.0,0.00021917,4]
[331165486,1720114245958,-500.0,0.00021917,4]
[331165488,1720114245967,-500.0,0.00021917,4]
[331165490,1720114245976,-500.0,0.00021917,4]
[331165492,1720114245985,-500.0,0.00021917,4]
[331165494,1720114245995,-500.0,0.00021917,4]
[331165496,1720114246004,-500.0,0.00021917,4]
[331165498,1720114246014,-500.0,0.00021917,4]
[331165500,1720114246023,-593.71,0.00021917,4]
[331165502,1720114246032,-593.71,0.00021917,4]
[331165504,1720114246041,-593.71,0.00021917,4]
[331165506,1720114246050,-593.71,0.00021917,4]
[331165508,1720114246059,-412.88494997,0.00021917,4]
[331165510,1720114246069,-593.71,0.00021917,4]
[331165512,1720114246078,-500.0,0.00021917,4]
[331165514,1720114246087,-500.0,0.00021917,4]
[331165516,1720114246096,-500.0,0.00021917,4]
[331165518,1720114246104,-500.0,0.00021917,4]
[331165520,1720114246114,-500.0,0.00021917,4]
[331165522,1720114246123,-500.0,0.00021917,4]
[331165524,1720114246132,-500.0,0.00021917,4]
[331165526,1720114246142,-500.0,0.00021917,4]
[331165528,1720114246153,-500.0,0.00021917,4]
[331165530,1720114246162,-500.0,0.00021917,4]
[331165532,1720114246171,-500.0,0.00021917,4]
[331165534,1720114246180,-500.0,0.00021917,4]
[331165536,1720114246190,-500.0,0.00021917,4]
[331165538,1720114246199,-500.0,0.00021917,4]
[331165540,1720114246208,-1829.43,0.00021917,4]
[331165542,1720114246218,-1829.43,0.00021917,4]
[331165544,1720114246227,-1829.43,0.00021917,4]
[331165546,1720114246236,-1753.2,0.00021917,4]
[331165548,1720114246246,-1753.2,0.00021917,4]
[331165551,1720114246255,-1753.2,0.00021917,4]
[331165553,1720114246264,-1753.2,0.00021917,4]
[331165556,1720114246274,-1753.2,0.00021917,4]
[331165557,1720114246283,-2926.48748,0.00021917,2]
[331165560,1720114246292,-1038.62,0.00021917,4]
[331165561,1720114246301,-1038.62,0.00021917,4]
[331165563,1720114246310,-1038.62,0.00021917,4]
[331165565,1720114246319,-1038.62,0.00021917,4]
[331165568,1720114246329,-1038.62,0.00021917,4]
[331165570,1720114246338,-1038.62,0.00021917,4]
[331165572,1720114246347,-1038.62,0.00021917,4]
[331165573,1720114246358,-1038.62,0.00021917,4]
[331165575,1720114246367,-1038.62,0.00021917,4]
[331165577,1720114246376,-1038.62,0.00021917,4]
[331165580,1720114246386,-500.0,0.00021917,4]
[331165581,1720114246395,-510.3,0.00021917,4]
[331165584,1720114246405,-500.0,0.00021917,4]
[331165585,1720114246414,-510.3,0.00021917,4]
[331165588,1720114246423,-500.0,0.00021917,4]
[331165589,1720114246433,-510.3,0.00021917,4]
[331165591,1720114246442,-500.0,0.00021917,4]
[331165593,1720114246451,-510.3,0.00021917,4]
[331165595,1720114246460,-500.0,0.00021917,4]
[331165598,1720114246472,-510.3,0.00021917,4]
[331165600,1720114246481,-500.0,0.00021917,4]
[331165602,1720114246490,-2125.65,0.00021917,4]
[331165604,1720114246505,-2125.65,0.00021917,4]
[331165606,1720114246514,-500.0,0.00021917,4]
[331165608,1720114246523,-2125.65,0.00021917,4]
[331165610,1720114246533,-500.0,0.00021917,4]
[331165612,1720114246545,-2125.65,0.00021917,4]
[331165614,1720114246556,-500.0,0.00021917,4]
[331165616,1720114246566,-2125.65,0.00021917,4]
[331165618,1720114246578,-500.0,0.00021917,4]
[331165620,1720114246588,-2125.65,0.00021917,4]
[331165622,1720114246597,-500.0,0.00021917,4]
[331165624,1720114246607,-2125.65,0.00021917,4]
[331165626,1720114246616,-2125.65,0.00021917,4]
[331165628,1720114246625,-2125.65,0.00021917,4]
[331165630,1720114246635,-2125.65,0.00021917,4]
[331165632,1720114246644,-596.2,0.00021917,4]
[331165634,1720114246653,-596.2,0.00021917,4]
[331165636,1720114246664,-596.2,0.00021917,4]
[331165638,1720114246674,-596.2,0.00021917,4]
[331165640,1720114246683,-617.42,0.00021917,4]
[331165642,1720114246692,-617.42,0.00021917,4]
[331165644,1720114246701,-617.42,0.00021917,4]
[331165646,1720114246711,-617.42,0.00021917,4]
[331165648,1720114246720,-617.42,0.00021917,4]
[331165650,1720114246730,-500.0,0.00021917,4]
[331165652,1720114246739,-500.0,0.00021917,4]
[331165654,1720114246749,-569.48,0.00021917,4]
[331165656,1720114246759,-569.48,0.00021917,4]
[331165658,1720114246769,-500.0,0.00021917,4]
[331165660,1720114246778,-569.48,0.00021917,4]
[331165662,1720114246788,-500.0,0.00021917,4]
[331165664,1720114246797,-569.48,0.00021917,4]
[331165666,1720114246807,-576.16,0.00021917,4]
[331165668,1720114246816,-576.16,0.00021917,4]
[331165670,1720114246825,-576.16,0.00021917,4]
[331165672,1720114246834,-500.0,0.00021917,4]
[331165674,1720114246843,-576.16,0.00021917,4]
[331165676,1720114246852,-500.0,0.00021917,4]
[331165678,1720114246861,-500.0,0.00021917,4]
[331165680,1720114246870,-576.16,0.00021917,4]
[331165682,1720114246879,-500.0,0.00021917,4]
[331165684,1720114246888,-500.0,0.00021917,4]
[331165686,1720114246897,-500.0,0.00021917,4]
[331165688,1720114246907,-500.0,0.00021917,4]
[331165690,1720114246916,-500.0,0.00021917,4]
[331165692,1720114246925,-500.0,0.00021917,4]
[331165694,1720114246935,-258.6,0.00021917,4]
[331165696,1720114246944,-7316.21,0.00021917,4]
[331165698,1720114246954,-7316.21,0.00021917,4]
[331165700,1720114246963,-7316.21,0.00021917,4]
[331165702,1720114246973,-7316.21,0.00021917,4]
[331165704,1720114246982,-500.0,0.00021917,4]
[331165706,1720114246991,-500.0,0.00021917,4]
[331165708,1720114247000,-500.0,0.00021917,4]
[331165710,1720114247008,-500.0,0.00021917,4]
[331165712,1720114247019,-500.0,0.00021917,4]
[331165714,1720114247028,-500.0,0.00021917,4]
[331165716,1720114247037,-500.0,0.00021917,4]
[331165718,1720114247048,-500.0,0.00021917,4]
[331165720,1720114247057,-500.0,0.00021917,4]
[331165722,1720114247066,-500.0,0.00021917,4]
[331165724,1720114247075,-500.0,0.00021917,4]
[331165726,1720114247084,-500.0,0.00021917,4]
[331165728,1720114247093,-500.0,0.00021917,4]
[331165729,1720114247102,-500.0,0.00021917,4]
[331165731,1720114247111,-500.0,0.00021917,4]
[331165734,1720114247119,-500.0,0.00021917,4]
[331165735,1720114247130,-500.0,0.00021917,4]
[331165737,1720114247140,-500.0,0.00021917,4]
[331165740,1720114247150,-500.0,0.00021917,4]
[331165741,1720114247159,-500.0,0.00021917,4]
[331165743,1720114247168,-500.0,0.00021917,4]
[331165745,1720114247177,-500.0,0.00021917,4]
[331165747,1720114247186,-1518.0,0.00021917,4]
[331165749,1720114247195,-1518.0,0.00021917,4]
[331165751,1720114247204,-500.0,0.00021917,4]
[331165753,1720114247213,-500.0,0.00021917,4]
[331165755,1720114247222,-500.0,0.00021917,4]
[331165757,1720114247231,-820.24,0.00021917,4]
[331165759,1720114247240,-820.24,0.00021917,4]
[331165762,1720114247250,-500.0,0.00021917,4]
[331165763,1720114247260,-820.24,0.00021917,4]
[331165765,1720114247272,-820.24,0.00021917,4]
[331165767,1720114247281,-500.0,0.00021917,4]
[331165770,1720114247292,-820.24,0.00021917,4]
[331165771,1720114247302,-500.0,0.00021917,4]
[331165773,1720114247311,-500.0,0.00021917,4]
[331165776,1720114247320,-500.0,0.00021917,4]
[331165777,1720114247329,-500.0,0.00021917,4]
[331165779,1720114247338,-500.0,0.00021917,4]
[331165782,1720114247348,-500.0,0.00021917,4]
[331165784,1720114247357,-500.0,0.00021917,4]
[331165786,1720114247367,-150.0,0.00021917,4]
[331165788,1720114247377,-500.0,0.00021917,4]
[331165790,1720114247386,-500.0,0.00021917,4]
[331165792,1720114247395,-500.0,0.00021917,4]
[331165794,1720114247404,-500.0,0.00021917,4]
[331165796,1720114247414,-2446.51,0.00021917,4]
[331165798,1720114247423,-2446.51,0.00021917,4]
[331165800,1720114247432,-2446.51,0.00021917,4]
[331165802,1720114247442,-2446.51,0.00021917,4]
[331165804,1720114247451,-2446.51,0.00021917,4]
[331165806,1720114247461,-2446.51,0.00021917,4]
[331165808,1720114247471,-2446.51,0.00021917,4]
[331165810,1720114247480,-2446.51,0.00021917,4]
[331165812,1720114247489,-2446.51,0.00021917,4]
[331165814,1720114247499,-500.0,0.00021917,4]
[331165816,1720114247513,-2446.51,0.00021917,4]
[331165818,1720114247523,-500.0,0.00021917,4]
[331165820,1720114247533,-500.0,0.00021917,4]
[331165822,1720114247542,-500.0,0.00021917,4]
[331165824,1720114247552,-500.0,0.00021917,4]
[331165826,1720114247561,-4704.9,0.00021917,4]
[331165828,1720114247571,-500.0,0.00021917,4]
[331165830,1720114247580,-500.0,0.00021917,4]
[331165832,1720114247593,-4704.9,0.00021917,4]
[331165834,1720114247603,-500.0,0.00021917,4]
[331165836,1720114247612,-500.0,0.00021917,4]
[331165838,1720114247622,-534.48,0.00021917,4]
[331165840,1720114247631,-4704.9,0.00021917,4]
[331165842,1720114247642,-500.0,0.00021917,4]
[331165844,1720114247651,-534.48,0.00021917,4]
[331165846,1720114247660,-4704.9,0.00021917,4]
[331165848,1720114247670,-554.08,0.00021917,4]
[331165850,1720114247679,-534.48,0.00021917,4]
[331165852,1720114247688,-554.08,0.00021917,4]
[331165854,1720114247698,-534.48,0.00021917,4]
[331165856,1720114247708,-554.08,0.00021917,4]
[331165858,1720114247717,-534.48,0.00021917,4]
[331165860,1720114247726,-554.08,0.00021917,4]
[331165862,1720114247735,-339.34166712,0.00021917,4]
[331165868,1720114247785,-214.73833288,0.00021917,4]
[331165870,1720114247796,-554.08,0.00021917,4]
[331165872,1720114247806,-554.08,0.00021917,4]
[331165874,1720114247816,-554.08,0.00021917,4]
[331165875,1720114247825,-554.08,0.00021917,4]
[331165876,1720114247835,-554.08,0.00021917,4]
[331165877,1720114247844,-82.23023498,0.00021917,4]
[331166033,1720114249402,-417.76976502,0.00021917,4]
[331166035,1720114249412,-554.08,0.00021917,4]
[331166037,1720114249420,-547.65,0.00021917,4]
[331166039,1720114249430,-500.0,0.00021917,4]
[331166041,1720114249438,-500.0,0.00021917,4]
[331166043,1720114249447,-500.0,0.00021917,4]
[331166045,1720114249457,-501.85,0.00021917,4]
[331166047,1720114249467,-500.0,0.00021917,4]
[331166049,1720114249475,-500.0,0.00021917,4]
[331166051,1720114249484,-501.85,0.00021917,4]
[331166053,1720114249493,-501.85,0.00021917,4]
[331166055,1720114249503,-501.85,0.00021917,4]
[331166057,1720114249517,-891.95748971,0.00021917,2]
[331166059,1720114249526,-373.99564794,0.00021917,4]
[331166062,1720114249539,-127.85435206,0.00021917,4]
[331166064,1720114249548,-501.85,0.00021917,4]
[331166066,1720114249557,-184.84829207,0.00021917,4]
[331166069,1720114249580,-3173.3999109,0.00021859,2]
[331166071,1720114249591,-317.00170793,0.00021917,4]
[331166073,1720114249600,-501.85,0.00021917,4]
[331166075,1720114249609,-501.85,0.00021917,4]
[331166077,1720114249619,-501.85,0.00021917,4]
[331166079,1720114249628,-500.0,0.00021917,2]
[331166081,1720114249638,-500.0,0.00021917,2]
[331166083,1720114249647,-500.0,0.00021917,2]
[331166085,1720114249656,-500.0,0.00021917,2]
[331166087,1720114249665,-1233.65,0.00021917,4]
[331166089,1720114249674,-1233.65,0.00021917,4]
[331166091,1720114249684,-1233.65,0.00021917,4]
[331166093,1720114249694,-500.0,0.00021917,4]
[331166096,1720114249704,-1233.65,0.00021917,4]
[331166097,1720114249713,-1233.65,0.00021917,4]
[331166099,1720114249722,-500.0,0.00021917,4]
[331166102,1720114249733,-500.0,0.00021917,4]
[331166104,1720114249742,-500.0,0.00021917,4]
[331166106,1720114249752,-500.0,0.00021917,4]
[331166108,1720114249761,-500.0,0.00021917,4]
[331166110,1720114249772,-278.21,0.00021918,2]
[331166112,1720114249782,-216.22,0.00021918,2]
[331166114,1720114249792,-150.0,0.00021918,2]
[331166116,1720114249801,-960.56,0.00021918,2]
[331166118,1720114249811,-425.63,0.00021951,2]
[331166120,1720114249820,-151.0,0.00021955,2]
[331166122,1720114249829,-1000.0,0.00021961,2]
[331166124,1720114249838,-500.34285524,0.00021975,2]
[331166125,1720114249846,-500.0,0.00021989,4]
[331166127,1720114249855,-500.0,0.00021989,4]
[331166130,1720114249865,-167.84995584,0.00021989,4]
[331166132,1720114249874,-596.2,0.00021989,4]
[331166134,1720114249883,-569.48,0.00021989,4]
[331166135,1720114249892,-6351.99836071,0.00021989,4]
[331166484,1720114435383,5867.88774414,9e-05,2]
[331166485,1720114440203,1522.45609378,0.00024658,60]
[331166488,1720114534064,267.62549217,0.00015,14]
[331166494,1720114617709,1143709.56392906,0.000225,120]
[331166503,1720115231139,-155.27672255,0.000117,2]
[331166504,1720115231160,-18.16397338,0.00011799,2]
[331166511,1720115353110,-311.83602662,0.00011799,2]
[331166512,1720115353133,-4510.26860459,0.000118,2]
[331166513,1720115353155,-168.58,0.00011939,2]
[331166538,1720115432612,-330.65411253,0.00013906,2]
[331166539,1720115432622,-207.0,0.00013999,2]
[331166540,1720115432631,-83.73891018,0.00014,2]
[331166541,1720115432642,-772.1,0.00014,2]
[331166542,1720115432653,-498.13056231,0.00014,2]
[331166543,1720115432664,-530.0,0.00014,2]
[331166544,1720115432675,-1280.56006859,0.00014,2]
[331166545,1720115432686,-4906.64703926,0.00014,2]
[331166546,1720115432698,-1501.86943769,0.00014,2]
[331166547,1720115432709,-1684.86444504,0.00014,2]
[331166548,1720115432720,-2034.51281324,0.00014,2]
[331166554,1720115438526,-3641.85117459,0.00014,2]
[331166555,1720115438682,-1245.03939917,0.00014,2]
[331166556,1720115438694,-639.75,0.00014,2]
[331166557,1720115438706,-2329.20129299,0.00014,2]
[331166558,1720115438717,-1029.27,0.00014,2]
[331166559,1720115438729,-741.3170906,0.00014,2]
[331166560,1720115438740,-329.34918918,0.00014,2]
[331166561,1720115438751,-17831.11900324,0.00014,2]
[331166562,1720115439266,-323.856099,0.00014,2]
[331166710,1720115440877,-301662.04950995,0.00014,2]
[331166711,1720115440888,-17965.72626211,0.00014,2]
[331166712,1720115440899,-6726.08851393,0.00014,2]
[331166728,1720115441128,-5669.09445492,0.00014,2]
[331166730,1720115441139,-2156.45869733,0.00014,2]
[331166732,1720115441150,-278.90148217,0.00014,2]
[331166994,1720115443522,-465.816,0.00014,2]
[331166996,1720115443533,-306976.02343799,0.00014,2]
[331166998,1720115443546,-11851.94698878,0.00014,2]
[331167023,1720115443738,-369.12270208,0.00014,2]
[331167162,1720115445032,-623.50999992,0.00014,2]
[331167167,1720115445070,-0.00483661,0.00014,2]
[331167169,1720115445081,-531.80188952,0.00014,2]
[331167175,1720115445124,-330.3755325,0.00014,2]
[331167177,1720115445135,-378.9009076,0.00014,2]
[331167324,1720115446585,-29935.35769939,0.00014,2]
[331167326,1720115446594,-261.71740494,0.00014006,2]
[331167328,1720115446604,-163.90313412,0.00014106,2]
[331167330,1720115446613,-150.0,0.00014192,2]
[331167332,1720115446623,-661.65,0.00014206,2]
[331167334,1720115446632,-500.0,0.00014496,2]
[331167336,1720115446641,-499.99,0.00014496,2]
[331167338,1720115446650,-150.99,0.00014496,2]
[331167340,1720115446659,-14315.99500366,0.000149,2]
[331167342,1720115446668,-179.28516623,0.000149,2]
[331167344,1720115446678,-23900.0,0.00014922,2]
[331167346,1720115446687,-500.0,0.00014973,2]
[331167348,1720115446696,-500.0,0.00014999,2]
[331167350,1720115446706,-492.6885797,0.00014999,2]
[331167352,1720115446715,-452.03454552,0.00014999,2]
[331167354,1720115446725,-500.0,0.00014999,2]
[331167356,1720115446733,-500.0,0.00014999,2]
[331167358,1720115446742,-500.0,0.00014999,2]
[331167360,1720115446752,-1925.74471375,0.00015,2]
[331167362,1720115446761,-19203.50348502,0.00015,2]
[331167364,1720115446773,-1185.57,0.00015,2]
[331167366,1720115446784,-597.35323227,0.00015,2]
[331167376,1720115446871,-861.89995876,0.00015,2]
[331167378,1720115446884,-2524.49390028,0.00015,2]
[331167380,1720115446895,-1187.166835,0.00015,2]
[331167383,1720115446906,-534.16021158,0.00015,2]
[331167385,1720115446917,-1284.1755862,0.00015,2]
[331167387,1720115446928,-404.48230813,0.00015,2]
[331167389,1720115446940,-1222.58142477,0.00015,2]
[331167391,1720115446951,-1753.85498398,0.00015,2]
[331167398,1720115447078,-1788.83831452,0.00015,2]
[331168446,1720116067319,6881.98343996,0.00011199,2]
[331168472,1720116262951,150.82013,0.00011087,2]
[331168491,1720116304282,13446.37480456,0.00011199,2]
[331168505,1720116466668,150.0,0.00011087,2]
[331168507,1720116477155,152.09217,0.00011087,2]
[331168508,1720116479672,200.0,0.00011032,2]
[331168511,1720116512480,1500.0,0.00011199,2]
[331168513,1720116550119,1750.08927403,0.00011032,2]
[331168514,1720116571191,-1940.90822804,0.00012273,2]
[331168515,1720116571213,-229.13265735,0.00012314,2]
[331168516,1720116571233,-269.9716691,0.00012314,2]
[331168517,1720116571256,-155.11959105,0.00012314,2]
[331168518,1720116571276,-202.34507322,0.00012314,2]
[331168519,1720116571295,-475.43641296,0.00012314,2]
[331168520,1720116571315,-164.4334539,0.00012314,2]
[331168521,1720116571343,-155.48552727,0.00012314,2]
[331168522,1720116571368,-276.10780549,0.00012314,2]
[331168523,1720116571388,-492.08745372,0.00013128,2]
[331168524,1720116571409,-2721.84710475,0.00013372,2]
[331168525,1720116571433,-252.66077841,0.00013472,2]
[331168531,1720116631654,-628.56,0.00013002,2]
[331168534,1720116631664,-3080.31235881,0.00013128,2]
[331168536,1720116631673,-6532.83329911,0.00013472,2]
[331168537,1720116631683,-308.00309941,0.00013516,2]
[331168538,1720116631692,-11771.0,0.00014409,2]
[331168539,1720116631702,-500.0,0.00014799,2]
[331168540,1720116631711,-200.0,0.000148,5]
[331168542,1720116631722,-2938.73957,0.0001485,2]
[331168544,1720116631732,-5549.2039,0.00014899,2]
[331168546,1720116631741,-175.48904366,0.000149,2]
[331168548,1720116631751,-169.97824518,0.000149,2]
[331168550,1720116631760,-11163.1053,0.000149,2]
[331168551,1720116631769,-295.3553,0.000149,2]
[331168552,1720116631779,-13122.99542004,0.000149,2]
[331168553,1720116631788,-500.0,0.000149,5]
[331168554,1720116631797,-2500.0,0.000149,2]
[331168555,1720116631806,-249.75341307,0.000149,2]
[331168556,1720116631816,-179.28516623,0.000149,2]
[331168557,1720116631825,-327.5994623,0.000149,2]
[331168558,1720116631839,-203.94857317,0.0001499,2]
[331168559,1720116631848,-167.88,0.0001499,3]
[331168560,1720116631858,-503.68,0.0001499,3]
[331168561,1720116631868,-500.0,0.00014999,2]
[331168562,1720116631879,-478.11927475,0.00014999,2]
[331168563,1720116631889,-546381.49042626,0.00015,2]
[331168564,1720116631926,-7028.89931554,0.00015,2]
[331168565,1720116631939,-1189.92289078,0.00015,2]
[331168566,1720116631951,-2395.1680867,0.00015,2]
[331168567,1720116631963,-792932.7525802,0.00015,2]
[331168568,1720116631974,-98712.94385213,0.00015,2]
[331168569,1720116631984,-9528.12429754,0.00015,2]
[331168570,1720116631993,-628.56,0.00015266,2]
[331168571,1720116632003,-23900.0,0.00015345,2]
[331168572,1720116632013,-250.0,0.00015555,2]
[331168573,1720116632022,-250.0,0.00015576,2]
[331168574,1720116632032,-204.71326199,0.00015579,2]
[331168575,1720116632041,-200.0,0.0001561,2]
[331168576,1720116632051,-13122.99541998,0.00015626,2]
[331168577,1720116632060,-172.7696657,0.00015832,2]
[331168578,1720116632069,-249.75341303,0.00015971,2]
[331168579,1720116632078,-327.59946225,0.00016041,2]
[331168580,1720116632088,-500.0,0.0001614,2]
[331168581,1720116632098,-2861.69401342,0.00016172,2]
[331168582,1720116632107,-646.03932415,0.00016172,2]
[331168583,1720116632117,-712.41624425,0.00016315,2]
[331168584,1720116632127,-13122.99541998,0.00016353,2]
[331168585,1720116632136,-335.76,0.0001636,3]
[331168586,1720116632146,-320.0,0.00016445,2]
[331168587,1720116632156,-200.0,0.00016649,2]
[331168588,1720116632166,-489.14391285,0.00016699,2]
[331168589,1720116632176,-764.1347274,0.00016699,2]
[331168590,1720116632191,-866.75884238,0.00016808,2]
[331168591,1720116632201,-621.94352246,0.00016808,2]
[331168592,1720116632211,-800.0,0.00016874,2]
[331168593,1720116632221,-249.75341303,0.00017043,2]
[331168594,1720116632232,-184.0,0.00017057,2]
[331168595,1720116632242,-599.50817425,0.00017079,2]
[331168596,1720116632254,-451.63886766,0.00017079,2]
[331168597,1720116632266,-531.77659901,0.00017079,2]
[331168598,1720116632279,-1450.0,0.00017079,2]
[331168609,1720116637798,-325.63355842,0.00014496,2]
[331168610,1720116637811,-474.36644158,0.00014496,2]
[331168611,1720116637821,-800.0,0.00015318,2]
[331168612,1720116637831,-717.89169523,0.00015535,2]
[331168613,1720116637840,-800.0,0.0001614,2]
[331168614,1720116637849,-6964.6135997,0.00016329,2]
[331168615,1720116637859,-2505.44670313,0.00017079,2]
[331168616,1720116637870,-4852.6012,0.00017079,2]
[331168617,1720116637882,-2732.02387593,0.00017079,2]
[331168618,1720116637892,-327.59946225,0.00017183,2]
[331168619,1720116637902,-2491.38064666,0.00017199,2]
[331168620,1720116637912,-461.0106922,0.00017253,2]
[331168621,1720116637921,-430.9664964,0.00017253,2]
[331168622,1720116637931,-155.0,0.00017257,2]
[331168623,1720116637940,-455.85494783,0.00017259,2]
[331168624,1720116637950,-2938.73958,0.0001735,2]
[331168625,1720116637960,-227.14852012,0.00017444,2]
[331168626,1720116637969,-95.54262319,0.0001753,2]
[331168627,1720116637984,-533.01737681,0.0001753,2]
[331168628,1720116637993,-200.0,0.00017561,2]
[331168629,1720116638003,-166.67,0.00017678,2]
[331168630,1720116638012,-2065.0,0.000177,3]
[331168631,1720116638021,-221.60529015,0.00017784,2]
[331168632,1720116638033,-278.39470985,0.00017784,2]
[331168633,1720116638043,-607.0,0.000178,3]
[331168634,1720116638052,-3583.18433254,0.00017805,2]
[331168635,1720116638064,-901.37718854,0.00017805,2]
[331168636,1720116638075,-442.25,0.00017805,2]
[331168638,1720116638087,-8196.1838989,0.00017805,2]
[331168640,1720116638096,-155.0,0.00017829,2]
[331168642,1720116638106,-412.61839352,0.00018,2]
[331168643,1720116638115,-249.75341303,0.00018114,2]
[331168644,1720116638124,-327.59946225,0.00018324,2]
[331168645,1720116638134,-320.0,0.000185,2]
[331168646,1720116638144,-13122.99541998,0.00018532,2]
[331168647,1720116638154,-156.35,0.00018849,30]
[331168648,1720116638166,-500.0,0.0001888,2]
[331168649,1720116638177,-700.0,0.000189,6]
[331168650,1720116638189,-151.26,0.000189,2]
[331168651,1720116638199,-800.0,0.00018984,2]
[331168652,1720116638208,-4892.29218769,0.00019,2]
[331168653,1720116638219,-1250.0,0.00019,2]
[331168654,1720116638230,-250.0,0.00019178,2]
[331168655,1720116638239,-168.93,0.0001918,2]
[331168656,1720116638250,-168.93,0.0001918,2]
[331168657,1720116638262,-168.93,0.0001918,2]
[331168658,1720116638271,-168.93,0.0001918,2]
[331168659,1720116638280,-168.93,0.0001918,2]
[331168660,1720116638290,-168.93,0.0001918,2]
[331168661,1720116638299,-168.93,0.0001918,2]
[331168662,1720116638308,-168.93,0.0001918,2]
[331168663,1720116638317,-249.75341303,0.00019186,2]
[331168664,1720116638328,-13122.99541998,0.00019258,2]
[331168665,1720116638338,-96850.55676272,0.00019451,2]
[331168666,1720116638347,-327.59946225,0.00019466,2]
[331168667,1720116638357,-2187.0,0.000195,2]
[331168668,1720116638366,-200.0,0.00019512,2]
[331168669,1720116638375,-292.57856873,0.00019548,2]
[331168670,1720116638385,-3800.03582539,0.00019661,2]
[331168671,1720116638394,-528.53097228,0.00019725,2]
[331168672,1720116638404,-628.56,0.00019794,2]
[331168673,1720116638414,-2938.73957,0.0001985,2]
[331168674,1720116638423,-365.68662725,0.00019899,2]
[331168675,1720116638432,-2049.49584205,0.000199,2]
[331168676,1720116638445,-3655.02909238,0.000199,2]
[331168678,1720116638456,-7341.36192807,0.000199,2]
[331168679,1720116638465,-597.51162878,0.00019976,2]
[331168680,1720116638476,-13122.99541998,0.00019985,2]
[331168681,1720116638486,-8209.33825568,0.00019987,2]
[331168682,1720116638497,-1168.25878699,0.00019987,2]
[331168683,1720116638507,-523.47312896,0.0001999,2]
[331168684,1720116638516,-168.93,0.0001999,2]
[331168685,1720116638525,-168.93,0.0001999,2]
[331168686,1720116638535,-499.48650222,0.00019997,2]
[331168687,1720116638544,-6268.60106412,0.0002,2]
[331168688,1720116638554,-4497.9999991,0.0002,2]
[331168689,1720116638563,-10701.25158946,0.0002,2]
[331168690,1720116638572,-365.53771181,0.0002,7]
[331168691,1720116638582,-56659.34914477,0.0002,4]
[331168692,1720116638593,-2275.00572239,0.0002,4]
[331168693,1720116638605,-23141.06286317,0.0002,4]
[331168694,1720116638641,-800.0,0.00016962,2]
[331168695,1720116638652,-3360.28349679,0.0002,4]
[331168696,1720116638663,-113103.82830526,0.0002,4]
[331168697,1720116638674,-869.19947107,0.0002,4]
[331168698,1720116638686,-454.67894768,0.0002,4]
[331168699,1720116638698,-591.4607645,0.0002,4]
[331168801,1720116639941,-800.0,0.0001751,2]
[331168804,1720116639962,-17700.99026572,0.0002,4]
[331168817,1720116640078,-3137.12953084,0.0002,4]
[331168819,1720116640090,-46406.674974,0.0002,4]
[331168822,1720116640101,-1641.30252,0.0002,4]
[331168824,1720116640113,-510.98056953,0.0002,4]
[331168826,1720116640125,-45081.48907596,0.0002,4]
[331168835,1720116640208,-728.05842579,0.0002,4]
[331168838,1720116640219,-861.78488582,0.0002,4]